bitfinex-derivatives/quotes_ETHF0:USTF0_20250105
["timestamp","ask_amount","ask_price","bid_price","bid_amount"]
[1736055103482,0.4386,3641.5,3641.2,0.9884786]
[1736055103692,0.27469,3641.4,3641.2,0.9884786]
[1736055103995,0.4321,3641.3,3641.2,1.2631786]
[1736055106385,0.4321,3641.3,3641.2,4.4709786]
[1736055106586,0.4321,3641.3,3641.2,4.1962786]
[1736055106796,0.4321,3641.3,3641.2,4.4709786]
[1736055107893,0.4386,3641.5,3641.3,0.27469]
[1736055108090,0.4386,3641.5,3641.4,0.9884786]
[1736055109987,0.4436,3641.7,3641.6,0.27467]
[1736055110192,0.4333,3641.8,3641.7,0.27466]
[1736055110395,0.4333,3641.8,3641.7,0.71106]
[1736055117992,0.4333,3641.8,3641.7,0.4364]
[1736055118889,0.4333,3641.8,3641.4,5.29812151]
[1736055119093,0.27467,3641.6,3641.4,4.30964291]
[1736055119295,0.27468,3641.5,3641.4,4.30964291]
[1736055120193,0.27468,3641.5,3641.2,10.67767003]
[1736055120194,0.27468,3641.5,3641.2,4.1962786]
[1736055121195,0.27468,3641.4,3641.2,4.1962786]
[1736055121500,0.27469,3641.3,3641.2,3.2078]
[1736055121794,0.865,3641.3,3640.9,5.29812151]
[1736055122000,0.27471,3641.0,3640.9,4.30964291]
[1736055122406,0.68301,3641.0,3640.9,4.30964291]
[1736055122891,0.4083,3641.0,3640.6,7.51744291]
[1736055123091,0.27474,3640.7,3640.6,4.30964291]
[1736055123397,3.48254,3640.7,3640.6,3.63404291]
[1736055124496,3.62008523,3640.7,3640.5,6.48139143]
[1736055124693,0.27475,3640.5,3640.1,3.2078]
[1736055125403,0.27475,3640.6,3640.1,3.48258]
[1736055125596,0.41228523,3640.7,3640.3,0.27476]
[1736055125804,0.41228523,3640.7,3640.4,0.4299]
[1736055126005,3.22724029,3640.7,3640.4,0.70466]
[1736055126303,3.22724029,3640.7,3640.5,0.4325]
[1736055127299,0.4147,3640.8,3640.5,0.4325]
[1736055127799,0.4147,3640.8,3640.4,0.4299]
[1736055128197,0.27474,3640.7,3640.4,0.4299]
[1736055129203,0.27475,3640.6,3640.4,0.4299]
[1736055129392,0.4206,3640.7,3640.2,0.4197]
[1736055129596,0.27477,3640.3,3640.1,3.2078]
[1736055129797,0.68337,3640.2,3640.1,3.2078]
[1736055130694,0.4086,3640.2,3640.1,3.2078]
[1736055132901,0.68337,3640.2,3640.1,3.2078]
[1736055134203,0.4086,3640.2,3640.1,3.2078]
[1736055134901,0.68337,3640.2,3640.1,3.2078]
[1736055139412,0.4086,3640.2,3640.1,3.2078]
[1736055139804,3.6284,3640.7,3640.1,3.2078]
[1736055140108,0.27476,3640.4,3640.2,0.4266]
[1736055140603,0.27476,3640.4,3640.1,3.2078]
[1736055140604,0.8527,3640.6,3640.1,3.2078]
[1736055140805,0.27477,3640.3,3640.1,3.2078]
[1736055141306,0.4211,3640.2,3640.1,3.2078]
[1736055141805,0.69587,3640.2,3640.1,3.2078]
[1736055142705,0.4211,3640.2,3639.6,3.6344]
[1736055142907,0.4319,3640.1,3639.6,4.0676]
[1736055143114,0.2748,3639.9,3639.6,4.0676]
[1736055143607,0.4171,3639.8,3639.6,4.0676]
[1736055143801,0.4171,3639.8,3639.6,3.641]
[1736055144003,0.4171,3639.8,3639.6,3.2078]
[1736055144004,2.55864048,3639.8,3639.6,3.2078]
[1736055144208,2.55864048,3639.8,3639.1,9.68919143]
[1736055144408,2.55864048,3639.8,3639.1,3.2078]
[1736055144608,0.27481,3639.7,3639.2,0.27485]
[1736055145001,0.27481,3639.7,3639.3,0.4301]
[1736055145200,0.4171,3639.8,3639.3,0.4301]
[1736055145407,0.27483,3639.4,3639.1,3.2078]
[1736055145703,0.27483,3639.5,3639.1,3.2078]
[1736055146013,0.431,3639.4,3639.1,3.2078]
[1736055146207,0.431,3639.4,3639.1,3.48266]
[1736055146408,0.4067,3639.3,3639.1,3.48266]
[1736055148613,0.431,3639.4,3639.1,3.48266]
[1736055150109,0.431,3639.4,3639.1,3.48265]
[1736055152213,0.431,3639.4,3639.2,0.27485]
[1736055152913,0.431,3639.4,3639.1,3.48265]
[1736055153513,0.431,3639.4,3639.1,3.2078]
[1736055154112,0.431,3639.4,3639.1,3.48266]
[1736055155218,0.431,3639.4,3639.2,3.2078]
[1736055156713,0.70584,3639.4,3639.2,3.2078]
[1736055157112,0.27484,3639.3,3639.2,3.2078]
[1736055157314,0.27486,3639.1,3639.0,0.4332]
[1736055158516,0.431,3639.4,3638.7,0.4207]
[1736055158721,0.71687,3639.0,3638.7,0.4207]
[1736055158914,0.4295,3638.9,3638.7,0.4207]
[1736055159217,0.4295,3638.9,3638.6,3.01494048]
[1736055159518,1.061,3639.4,3639.2,0.27485]
[1736055159718,1.061,3639.4,3639.3,0.8943]
[1736055163114,1.33583,3639.4,3639.3,0.4482]
[1736055163314,1.33583,3639.4,3639.0,0.27486]
[1736055163620,1.33583,3639.4,3639.0,0.72046]
[1736055164419,1.061,3639.4,3639.0,0.4456]
[1736055164719,0.27485,3639.3,3639.0,0.4456]
[1736055164920,0.427,3639.2,3639.0,0.4456]
[1736055165124,0.8413,3639.2,3639.0,0.4456]
[1736055171018,1.11615,3639.2,3639.0,0.4456]
[1736055172231,1.11615,3639.2,3639.1,0.98899128]
[1736055175223,1.11615,3639.2,3638.9,4.19679128]
[1736055177934,0.8413,3639.2,3638.9,4.47166128]
[1736055183332,0.27486,3639.1,3638.9,4.19679128]
[1736055183834,0.27486,3639.1,3638.9,3.2078]
[1736055184035,1.83029128,3639.2,3638.9,3.2078]
[1736055184240,0.27486,3639.0,3638.9,3.2078]
[1736055185840,0.27486,3639.0,3638.6,7.74527271]
[1736055186933,0.27486,3639.0,3638.6,1.26388128]
[1736055187134,0.98899128,3638.8,3638.5,10.12279143]
[1736055187439,0.4318,3638.7,3638.5,10.12279143]
[1736055187638,0.8598,3638.7,3638.5,10.12279143]
[1736055188144,0.8598,3638.7,3638.5,3.6414]
[1736055188736,0.8598,3638.7,3638.5,0.4336]
[1736055189040,0.27489,3638.6,3638.4,6.48139143]
[1736055189433,1.13469,3638.7,3638.5,0.98899128]
[1736055189737,4.36193029,3638.7,3638.5,0.98899128]
[1736055190739,4.08704029,3638.7,3638.5,0.98899128]
[1736055190934,0.27489,3638.6,3638.5,0.98899128]
[1736055191340,0.27489,3638.6,3638.3,7.92088271]
[1736055191535,4.36193029,3638.7,3638.3,7.92088271]
[1736055191936,4.36193029,3638.7,3638.3,8.19580271]
[1736055192540,4.08704029,3638.7,3638.3,7.92088271]
[1736055192841,0.2749,3638.6,3638.3,7.92088271]
[1736055194344,1.9188,3638.7,3638.3,7.92088271]
[1736055194737,2.19369,3638.7,3638.3,8.19580271]
[1736055194936,2.19369,3638.7,3638.3,1.71441128]
[1736055195239,1.9188,3638.7,3638.3,0.4505]
[1736055195639,0.27491,3638.5,3638.3,0.4505]
[1736055197543,0.2749,3638.6,3638.3,0.4505]
[1736055197846,0.27492,3638.3,3638.1,9.68919143]
[1736055198145,0.4306,3638.2,3638.1,9.68919143]
[1736055198344,0.8595,3638.2,3638.1,9.68919143]
[1736055199539,0.8595,3638.2,3638.1,3.2078]
[1736055207946,1.84849128,3638.2,3638.0,3.2078]
[1736055209553,0.27493,3638.1,3638.0,3.2078]
[1736055210842,1.84849128,3638.2,3638.0,3.2078]
[1736055211056,2.12342128,3638.2,3638.0,3.2078]
[1736055211656,0.27493,3638.1,3638.0,3.2078]
[1736055214864,4.00133156,3638.2,3637.5,0.4213]
[1736055215172,0.98899128,3637.7,3637.5,0.4213]
[1736055215468,0.4433,3637.6,3637.5,0.69628]
[1736055216770,0.4433,3637.6,3637.5,0.4213]
[1736055218674,0.4433,3637.6,3637.4,0.4483]
[1736055219569,0.98899128,3637.5,3637.4,0.4483]
[1736055222472,0.4433,3637.6,3637.4,0.72329]
[1736055223574,0.4433,3637.6,3637.4,0.4483]
[1736055231278,0.4433,3637.6,3637.4,0.72329]
[1736055232182,0.4433,3637.6,3637.4,0.4483]
[1736055233681,0.4433,3637.6,3637.4,0.72329]
[1736055235881,0.4433,3637.6,3637.4,0.4483]
[1736055236277,0.71827,3637.6,3637.4,0.4483]
[1736055236474,0.4433,3637.6,3637.4,0.4483]
[1736055237381,0.71827,3637.6,3637.4,0.4483]
[1736055248380,1.26397128,3637.5,3637.4,0.4483]
[1736055248689,1.26397128,3637.5,3637.3,7.52954425]
[1736055248891,0.27499,3637.4,3637.3,7.52954425]
[1736055249188,1.68207128,3637.5,3637.3,7.52954425]
[1736055249776,0.27499,3637.4,3637.3,3.2078]
[1736055250176,0.27499,3637.4,3637.2,4.32174425]
[1736055250177,3.55993156,3637.5,3637.2,4.32174425]
[1736055250383,1.26398128,3637.3,3637.2,4.32174425]
[1736055250781,0.98899128,3637.3,3637.0,4.32174425]
[1736055250980,0.27501,3637.1,3637.0,4.32174425]
[1736055251185,1.26400128,3637.1,3637.0,4.32174425]
[1736055252583,0.27502,3637.0,3636.9,4.32174425]
[1736055252782,0.72172,3637.0,3636.9,4.32174425]
[1736055254085,0.72172,3637.0,3636.8,4.32174425]
[1736055254279,1.26401128,3636.9,3636.8,4.32174425]
[1736055255283,0.72172,3637.0,3636.8,4.32174425]
[1736055255488,0.4467,3637.0,3636.8,4.32174425]
[1736055255689,2.15263533,3637.0,3636.9,0.27502]
[1736055255988,3.22724029,3637.2,3637.1,0.27501]
[1736055256185,3.22724029,3637.2,3637.1,4.47180128]
[1736055257190,0.8738,3637.8,3637.5,0.27497]
[1736055257389,1.43199128,3637.8,3637.4,0.98899128]
[1736055257588,1.43199128,3637.8,3637.6,0.27497]
[1736055257991,1.43199128,3637.8,3637.6,4.59892188]
[1736055258392,0.443,3637.8,3637.6,4.59892188]
[1736055258594,0.443,3637.8,3637.6,5.58791316]
[1736055259486,0.443,3637.8,3637.6,5.31294316]
[1736055259688,3.22724029,3637.9,3637.6,5.31294316]
[1736055259995,3.22724029,3637.9,3637.8,1.26395128]
[1736055261088,3.65584029,3638.1,3637.8,5.58790316]
[1736055261287,3.65584029,3638.1,3637.8,4.32395188]
[1736055263897,3.65584029,3638.1,3637.8,4.59890188]
[1736055267798,3.65584029,3638.1,3637.8,0.27495]
[1736055269297,0.4286,3638.1,3637.8,4.32395188]
[1736055270098,0.4286,3638.1,3637.9,3.48274]
[1736055271202,0.4286,3638.1,3637.9,3.2078]
[1736055274706,0.4286,3638.1,3638.0,1.26393128]
[1736055275007,0.4076,3638.3,3638.0,1.26393128]
[1736055275008,3.63484029,3638.3,3638.1,0.27493]
[1736055275197,0.4316,3638.2,3638.1,0.27493]
[1736055278704,1.69552128,3638.2,3638.0,3.2078]
[1736055278910,1.69552128,3638.2,3637.9,4.32395188]
[1736055279913,0.27493,3638.1,3637.9,4.32395188]
[1736055281014,1.42059128,3638.2,3637.7,5.58790316]
[1736055281210,1.69552128,3638.2,3637.7,5.58790316]
[1736055282314,1.69552128,3638.2,3637.7,1.26395128]
[1736055284709,1.69552128,3638.2,3637.8,0.27495]
[1736055286015,1.69552128,3638.2,3637.7,1.26395128]
[1736055286914,4.92276157,3638.2,3637.7,1.26395128]
[1736055288821,0.27493,3638.1,3637.7,1.26395128]
[1736055289019,1.26393128,3638.0,3637.6,4.59892188]
[1736055289320,0.409,3637.9,3637.6,4.59892188]
[1736055289616,0.4308,3637.8,3637.6,4.59892188]
[1736055289816,0.86,3637.8,3637.6,4.59892188]
[1736055290818,0.86,3637.8,3637.6,0.27497]
[1736055291314,0.86,3637.8,3637.7,0.27496]
[1736055292910,0.86,3637.8,3637.5,8.79571316]
[1736055293118,0.86,3637.8,3637.5,8.52074316]
[1736055293316,0.86,3637.8,3637.6,0.27497]
[1736055293920,1.84899128,3637.8,3637.5,7.53175188]
[1736055294119,2.12395128,3637.8,3637.5,4.32395188]
[1736055295115,2.12395128,3637.8,3637.4,9.96870782]
[1736055295116,2.12395128,3637.8,3637.4,3.48278]
[1736055295721,1.84899128,3637.8,3637.4,3.48278]
[1736055296020,1.84899128,3637.8,3637.4,0.27498]
[1736055296613,1.84899128,3637.8,3637.4,3.48278]
[1736055297022,1.84899128,3637.8,3637.5,0.27498]
[1736055297412,2.12395128,3637.8,3637.4,3.2078]
[1736055297613,0.98899128,3637.6,3637.3,4.59894188]
[1736055297818,0.98899128,3637.6,3637.4,4.32395188]
[1736055298417,1.26397128,3637.6,3637.4,4.32395188]
[1736055298621,0.98899128,3637.6,3637.4,4.32395188]
[1736055299224,0.98899128,3637.6,3637.3,0.27499]
[1736055300319,0.98899128,3637.6,3637.2,5.31294316]
[1736055300618,1.26396128,3637.6,3637.2,5.58794316]
[1736055300814,1.26396128,3637.6,3637.3,4.32395188]
[1736055301716,0.86,3637.8,3637.3,4.32395188]
[1736055301717,1.26398128,3637.4,3637.3,4.32395188]
[1736055301922,0.98899128,3637.4,3637.3,4.32395188]
[1736055302124,1.85269128,3637.4,3637.3,4.32395188]
[1736055302424,2.12768128,3637.4,3637.3,4.32395188]
[1736055303111,2.12768128,3637.4,3637.0,12.13071376]
[1736055303112,2.54031594,3637.4,3637.0,3.48281]
[1736055303315,0.98899128,3637.2,3637.0,3.2078]
[1736055303527,1.26399128,3637.2,3637.0,3.2078]
[1736055303719,0.98899128,3637.2,3637.0,3.2078]
[1736055304218,1.26399128,3637.2,3637.0,3.2078]
[1736055304426,0.98899128,3637.2,3636.9,4.32395188]
[1736055304625,1.26401128,3637.0,3636.9,4.32395188]
[1736055305625,1.26401128,3637.0,3636.7,4.32395188]
[1736055305828,0.8719,3636.9,3636.7,4.32395188]
[1736055306026,0.448,3636.8,3636.7,4.32395188]
[1736055307128,0.448,3636.8,3636.6,7.53175188]
[1736055308530,0.448,3636.8,3636.6,3.2078]
[1736055310126,1.71203128,3636.8,3636.6,3.2078]
[1736055310624,0.27504,3636.7,3636.6,3.2078]
[1736055312123,0.27504,3636.7,3636.6,2.5319]
[1736055312325,1.43699128,3636.8,3636.3,4.32395188]
[1736055312326,0.27506,3636.4,3636.3,4.32395188]
[1736055312523,2.32105128,3636.4,3636.3,4.32395188]
[1736055312931,2.32105128,3636.4,3635.9,4.32395188]
[1736055312932,0.27507,3636.3,3635.9,4.32395188]
[1736055313229,0.98899128,3636.1,3635.9,4.32395188]
[1736055313729,0.98899128,3636.1,3635.9,4.59905188]
[1736055314425,0.98899128,3636.1,3635.9,4.32395188]
[1736055314628,0.98899128,3636.1,3635.9,0.27509]
[1736055314824,0.98899128,3636.1,3635.8,3.2078]
[1736055315026,0.98899128,3636.1,3635.9,0.2751]
[1736055315533,0.423,3636.0,3635.9,0.2751]
[1736055324339,0.423,3636.0,3635.9,0.6973]
[1736055326434,0.423,3636.0,3635.8,3.2078]
[1736055326633,0.423,3636.0,3635.8,3.4829]
[1736055328440,0.423,3636.0,3635.9,0.2751]
[1736055328738,0.423,3636.0,3635.9,0.6963]
[1736055328944,0.423,3636.0,3635.9,0.2751]
[1736055331235,0.98899128,3636.1,3635.8,3.2078]
[1736055331544,4.31455741,3637.2,3636.0,0.98899128]
[1736055331850,3.33679128,3636.9,3636.7,0.27503]
[1736055332040,3.33679128,3636.9,3636.5,0.98899128]
[1736055332346,3.33679128,3636.9,3636.8,0.27503]
[1736055332544,2.90129128,3636.9,3636.8,0.27503]
[1736055338142,2.90129128,3636.9,3636.6,0.4238]
[1736055338342,2.90129128,3636.9,3636.7,0.27503]
[1736055339743,2.90129128,3636.9,3636.6,0.4238]
[1736055339946,2.90129128,3636.9,3636.8,0.27503]
[1736055342843,2.90129128,3636.9,3636.6,3.6316]
[1736055343052,2.90129128,3636.9,3636.7,0.27504]
[1736055343940,2.90129128,3636.9,3636.6,3.6316]
[1736055344144,2.90129128,3636.9,3636.8,0.27503]
[1736055344546,0.8543,3636.9,3636.8,0.27503]
[1736055344745,0.4415,3636.9,3636.8,0.27503]
[1736055346154,1.43049128,3636.9,3636.8,0.27503]
[1736055365068,0.4415,3636.9,3636.8,0.27503]
[1736055365966,0.4415,3636.9,3636.8,3.48283]
[1736055375074,0.4415,3636.9,3636.8,7.80678188]
[1736055375470,4.66827181,3637.2,3637.0,0.27502]
[1736055375670,0.8509,3637.1,3637.0,0.27502]
[1736055377667,4.08148053,3637.1,3637.0,4.32395188]
[1736055379075,1.26354177,3637.1,3637.0,4.03038333]
[1736055380480,1.53855177,3637.1,3637.0,4.03038333]
[1736055380779,1.12591,3637.1,3637.0,4.03038333]
[1736055382079,5.85310918,3637.1,3637.0,4.03038333]
[1736055383879,1.53855177,3637.1,3636.9,4.33124936]
[1736055384074,0.98899128,3637.0,3636.9,4.33124936]
[1736055384870,1.26401128,3637.0,3636.9,4.33124936]
[1736055385076,5.98763974,3637.0,3636.9,4.33124936]
[1736055386685,5.98763974,3637.0,3636.6,4.60628936]
[1736055386686,11.26468016,3637.0,3636.6,4.60628936]
[1736055386982,0.98899128,3636.7,3636.6,4.60628936]
[1736055388078,4.22075422,3636.7,3636.6,10.78996722]
[1736055388279,4.22075422,3636.7,3636.6,10.78997722]
[1736055389384,4.22075422,3636.7,3636.6,4.3040494]
[1736055390687,0.98899128,3636.7,3636.6,4.3040494]
[1736055390891,0.98899128,3636.7,3636.6,4.0289994]
[1736055391189,1.85989128,3636.7,3636.6,4.0289994]
[1736055393190,5.50434899,3636.7,3636.6,4.3283225]
[1736055394083,5.50434899,3636.7,3636.6,4.6033725]
[1736055394278,5.50434899,3636.7,3636.6,4.3283225]
[1736055394789,5.50434899,3636.7,3636.6,4.6033725]
[1736055395492,4.01348798,3636.7,3636.6,4.30247828]
[1736055397790,4.01348798,3636.7,3636.6,4.02742828]
[1736055399395,5.09165422,3636.7,3636.5,0.27505]
[1736055399592,5.09165422,3636.7,3636.6,4.32750909]
[1736055400597,5.09165422,3636.7,3636.5,4.60255909]
[1736055401694,2.15308464,3636.6,3636.5,4.60255909]
[1736055403100,2.15308464,3636.6,3636.5,4.32750909]
[1736055403302,2.15308464,3636.6,3636.5,4.60255909]
[1736055404197,5.09165422,3636.7,3636.5,4.60255909]
[1736055404598,5.09165422,3636.7,3636.5,4.32750909]
[1736055405898,3.23176294,3636.6,3636.5,4.32750909]
[1736055406104,3.23176294,3636.6,3636.3,7.81037909]
[1736055406292,0.98899128,3636.5,3636.3,7.81037909]
[1736055407197,3.14143242,3636.5,3636.3,7.53530909]
[1736055407610,1.33106,3636.4,3636.3,7.53530909]
[1736055408301,1.33106,3636.4,3636.3,4.32750909]
[1736055408503,1.33106,3636.4,3636.0,5.02829909]
[1736055408504,1.74380867,3636.4,3636.0,5.02829909]
[1736055408696,0.98899128,3636.1,3636.0,5.02829909]
[1736055410104,0.98899128,3636.1,3636.0,0.70079]
[1736055410105,3.14081918,3636.1,3636.0,0.70079]
[1736055410698,3.14081918,3636.1,3636.0,0.27509]
[1736055410899,3.14081918,3636.1,3635.9,4.32750909]
[1736055411202,3.14081918,3636.1,3635.9,4.60260909]
[1736055411605,0.4236,3636.0,3635.9,4.60260909]
[1736055412399,0.4236,3636.0,3635.9,4.32750909]
[1736055412797,0.4236,3636.0,3635.8,5.03581909]
[1736055413002,0.98899128,3635.9,3635.8,4.32750909]
[1736055413604,1.41719128,3635.9,3635.8,4.32750909]
[1736055415207,0.4236,3636.0,3635.8,4.32750909]
[1736055415397,0.4236,3636.0,3635.8,4.60260909]
[1736055415605,0.4236,3636.0,3635.9,0.4277]
[1736055417904,0.4236,3636.0,3635.8,4.32750909]
[1736055419410,0.4236,3636.0,3635.8,4.60260909]
[1736055419710,0.4236,3636.0,3635.8,0.2751]
[1736055420103,0.4236,3636.0,3635.7,4.77320909]
[1736055420309,0.4236,3636.0,3635.7,5.04831909]
[1736055421011,0.4236,3636.0,3635.7,4.77320909]
[1736055421205,0.4236,3636.0,3635.7,5.04831909]
[1736055421607,0.4236,3636.0,3635.7,4.77320909]
[1736055422012,0.4236,3636.0,3635.7,5.04831909]
[1736055423817,0.98899128,3635.9,3635.7,4.32750909]
[1736055425909,0.98899128,3635.9,3635.6,4.32750909]
[1736055425910,0.27511,3635.7,3635.6,4.32750909]
[1736055426107,2.31910128,3635.7,3635.6,4.32750909]
[1736055427718,0.27515,3635.3,3634.9,4.75600909]
[1736055427913,0.98899128,3635.1,3634.9,4.75600909]
[1736055428313,1.40939128,3635.1,3634.9,4.75600909]
[1736055428714,1.40939128,3635.1,3634.9,5.03117909]
[1736055429120,1.40939128,3635.1,3634.9,0.70367]
[1736055429319,1.40939128,3635.1,3634.7,5.59169037]
[1736055430120,1.40939128,3635.1,3634.9,0.27517]
[1736055430315,0.4204,3635.1,3635.0,0.27517]
[1736055430516,0.4204,3635.1,3635.0,3.48297]
[1736055430814,0.8516,3635.2,3635.0,3.48297]
[1736055431127,0.8516,3635.2,3635.0,3.93327]
[1736055431319,0.8516,3635.2,3635.0,3.6581]
[1736055431519,0.8516,3635.2,3635.0,3.93327]
[1736055433118,0.8516,3635.2,3635.1,0.27516]
[1736055433324,0.8516,3635.2,3635.0,3.93326]
[1736055437429,0.8516,3635.2,3635.1,0.27516]
[1736055437616,0.4081,3635.2,3635.1,0.27516]
[1736055439121,0.4081,3635.2,3635.0,3.6581]
[1736055439416,0.4081,3635.2,3635.1,0.27516]
[1736055441128,0.4081,3635.2,3635.0,3.93326]
[1736055442127,0.4081,3635.2,3635.0,3.6581]
[1736055442427,1.43909128,3635.1,3635.0,3.2078]
[1736055442927,1.43909128,3635.1,3634.7,1.43779128]
[1736055443130,0.4263,3635.0,3634.7,1.43779128]
[1736055443431,0.4263,3635.0,3634.9,0.27517]
[1736055444629,0.4263,3635.0,3634.7,0.27518]
[1736055444829,0.4263,3635.0,3634.8,0.27518]
[1736055445029,0.4263,3635.0,3634.6,3.2078]
[1736055445230,0.4263,3635.0,3634.7,0.27519]
[1736055446433,0.98899128,3634.9,3634.8,0.27518]
[1736055446723,0.4263,3635.0,3634.9,0.27517]
[1736055447131,0.4081,3635.2,3635.1,0.27516]
[1736055447319,0.4081,3635.2,3635.1,4.47195128]
[1736055447721,0.4081,3635.2,3635.1,1.26415128]
[1736055448533,0.4081,3635.2,3635.0,0.4329]
[1736055448929,0.4081,3635.2,3635.0,0.70807]
[1736055449127,1.39709128,3635.2,3635.0,0.70807]
[1736055449525,1.39709128,3635.2,3635.0,0.4329]
[1736055449828,0.4078,3635.1,3634.8,0.27518]
[1736055450125,1.43189128,3635.0,3634.8,0.27518]
[1736055450727,1.42934689,3635.0,3634.8,0.27518]
[1736055450926,1.42934689,3635.0,3634.7,3.48299]
[1736055452329,1.42934689,3635.0,3634.7,0.27519]
[1736055453430,1.42934689,3635.0,3634.7,3.48299]
[1736055458831,0.44035561,3635.0,3634.9,0.98899128]
[1736055459030,0.44035561,3635.0,3634.8,0.27518]
[1736055461137,0.44035561,3635.0,3634.7,8.52430037]
[1736055461326,0.44035561,3635.0,3634.8,0.27518]
[1736055462536,0.44035561,3635.0,3634.8,4.60268909]
[1736055463336,0.44035561,3635.0,3634.8,4.32750909]
[1736055463537,0.44035561,3635.0,3634.8,4.60268909]
[1736055463940,1.4631,3635.2,3635.0,0.27516]
[1736055464342,1.4631,3635.2,3635.1,1.41779128]
[1736055465039,0.4081,3635.2,3635.1,1.69295128]
[1736055465744,0.4081,3635.2,3635.1,6.02046037]
[1736055465937,0.4081,3635.2,3635.1,5.74530037]
[1736055466940,0.4081,3635.2,3635.1,6.02046037]
[1736055467145,3.20143579,3635.6,3635.5,0.27513]
[1736055467146,2.14643579,3635.6,3635.5,0.27513]
[1736055467447,2.14643579,3635.6,3635.5,1.26412128]
[1736055469044,0.447,3635.8,3635.7,0.27511]
[1736055470847,0.447,3635.8,3635.7,4.32463695]
[1736055471344,1.43599128,3635.8,3635.7,4.32463695]
[1736055472340,1.43599128,3635.8,3635.6,4.32463695]
[1736055474040,0.447,3635.8,3635.6,4.32463695]
[1736055474442,0.447,3635.8,3635.6,4.59975695]
[1736055475438,0.447,3635.8,3635.6,4.32463695]
[1736055478039,0.447,3635.8,3635.5,8.52142823]
[1736055479545,1.43599128,3635.8,3635.5,7.80756695]
[1736055479750,1.43599128,3635.8,3635.5,7.53243695]
[1736055479949,1.43599128,3635.8,3635.5,7.80756695]
[1736055480543,1.43599128,3635.8,3635.5,7.53243695]
[1736055480945,1.26411128,3635.6,3635.5,4.32463695]
[1736055481146,2.31911128,3635.6,3635.5,4.32463695]
[1736055482250,2.31911128,3635.6,3635.5,3.64873695]
[1736055482847,2.31911128,3635.6,3635.5,2.97283695]
[1736055483148,0.27516,3635.2,3634.8,6.48695542]
[1736055483340,1.26415128,3635.2,3634.8,6.48695542]
[1736055483546,0.4278,3635.1,3634.8,6.48695542]
[1736055483849,0.4278,3635.1,3634.8,6.76213542]
[1736055484040,0.4278,3635.1,3634.8,6.48695542]
[1736055484444,0.4278,3635.1,3634.7,6.76214542]
[1736055485342,0.8651,3635.1,3634.7,6.76214542]
[1736055485540,1.14027,3635.1,3634.7,6.48695542]
[1736055485741,0.4278,3635.1,3634.7,7.4759467]
[1736055485942,0.4278,3635.1,3634.9,4.47196128]
[1736055487454,0.4086,3635.3,3635.1,0.27516]
[1736055487654,0.4086,3635.3,3635.1,0.98899128]
[1736055488056,0.4086,3635.3,3635.1,1.26415128]
[1736055488754,0.4086,3635.3,3635.1,0.98899128]
[1736055490549,0.4086,3635.3,3635.0,0.70017]
[1736055490750,1.39759128,3635.3,3635.0,0.70017]
[1736055493958,1.39759128,3635.3,3635.0,1.10887]
[1736055495761,0.4086,3635.3,3635.1,0.27516]
[1736055496262,0.4086,3635.3,3635.0,0.8337]
[1736055496263,0.4086,3635.3,3635.0,1.10886]
[1736055498358,0.4086,3635.3,3635.0,0.8337]
[1736055498560,0.4086,3635.3,3635.1,0.27515]
[1736055499157,0.4086,3635.3,3635.0,1.10886]
[1736055500354,0.4086,3635.3,3635.1,0.27516]
[1736055501563,0.4501,3635.4,3635.1,0.27516]
[1736055502059,2.14768393,3635.5,3635.3,0.98899128]
[1736055502257,2.14768393,3635.5,3635.4,1.12804]
[1736055503259,3.54817521,3635.9,3635.4,4.84315146]
[1736055503462,3.54817521,3635.9,3635.5,0.72513]
[1736055503663,3.82327521,3635.9,3635.5,0.45]
[1736055503957,0.27511,3635.8,3635.5,0.45]
[1736055504559,2.14768393,3635.8,3635.5,0.72513]
[1736055506067,2.42279393,3635.8,3635.5,0.45]
[1736055506365,2.14768393,3635.8,3635.5,0.45]
[1736055507560,2.42279393,3635.8,3635.5,0.45]
[1736055507866,2.14768393,3635.8,3635.5,0.72513]
[1736055508167,2.14768393,3635.8,3635.6,0.27512]
[1736055508366,2.14768393,3635.8,3635.7,0.27511]
[1736055508567,2.14768393,3635.8,3635.5,1.43899128]
[1736055508869,2.14768393,3635.8,3635.6,0.27512]
[1736055509163,2.14768393,3635.8,3635.7,0.98899128]
[1736055509365,2.14768393,3635.8,3635.7,1.26410128]
[1736055509862,2.14768393,3635.8,3635.7,4.47190128]
[1736055510072,2.14768393,3635.9,3635.8,0.27511]
[1736055510566,2.14768393,3635.9,3635.8,0.70861]
[1736055511871,0.26459084,3636.0,3635.8,0.70861]
[1736055512166,0.26459084,3636.0,3635.9,0.2751]
[1736055512871,0.26459084,3636.0,3635.8,0.7086]
[1736055513266,6.22998393,3636.2,3635.8,0.7086]
[1736055513674,3.02218393,3636.2,3635.9,1.26409128]
[1736055513879,3.02218393,3636.2,3635.9,0.98899128]
[1736055514075,3.29726393,3636.2,3635.9,0.98899128]
[1736055514380,3.02218393,3636.2,3635.9,0.98899128]
[1736055514569,3.02218393,3636.2,3636.0,0.27509]
[1736055514766,3.02218393,3636.2,3635.9,0.98899128]
[1736055514965,3.02218393,3636.2,3635.9,1.26408128]
[1736055515568,3.02218393,3636.2,3636.0,0.27509]
[1736055515875,3.02218393,3636.2,3635.9,1.26409128]
[1736055517073,3.02218393,3636.2,3636.0,0.27509]
[1736055517074,0.8745,3636.2,3636.0,0.27509]
[1736055518779,0.8745,3636.2,3635.9,1.26408128]
[1736055522174,0.8745,3636.2,3636.0,0.27509]
[1736055522369,0.8745,3636.2,3635.9,0.98899128]
[1736055523879,0.8745,3636.2,3635.9,1.26409128]
[1736055525379,0.8745,3636.2,3636.0,0.27509]
[1736055526379,0.8745,3636.2,3635.9,1.26409128]
[1736055526580,0.8745,3636.2,3636.0,0.27509]
[1736055527675,0.8745,3636.2,3635.9,0.98899128]
[1736055527676,0.8745,3636.2,3636.1,1.26407128]
[1736055528277,0.8745,3636.2,3636.1,0.98899128]
[1736055528477,0.8745,3636.2,3636.1,1.26407128]
[1736055529680,0.4451,3636.2,3636.1,1.26407128]
[1736055529887,2.14768393,3636.5,3636.3,0.27507]
[1736055530180,2.58748393,3636.5,3636.4,1.26405128]